[Event "Indian Rapid Championship 2023-24"]
[Site "Nashik"]
[Date "2024.03.05"]
[Round "8.8"]
[White "Wagh Suyog"]
[Black "Priyanka Nutakki"]
[Result "1-0"]
[ECO "E11"]
[WhiteElo "2250"]
[BlackElo "2272"]
[Annotator "TA"]
[PlyCount "131"]
[EventDate "2024.03.02"]
[EventType "swiss"]
[EventCountry "IND"]
[SourceTitle "playchess.com"]
[Source "ChessBase"]
[SourceQuality "1"]
[TimeControl "900+10"]

{[%evp 32,131,16,4,61,10,21,0,42,10,22,6,8,0,22,20,25,26,72,20,82,75,69,65,104,121,103,28,29,34,42,12,104,92,92,11,41,47,101,107,115,53,81,71,93,51,114,56,79,0,0,6,42,0,29,33,949,840,1005,979,1220,1210,1413,1351,1389,1342,1383,0,1209,0,1406,1243,1483,1401,1539,1536,1631,1622,1623,1375,1790,1731,1537,837,1124,0,1732,1693,1567,1233,1233,0,1562,1348,1808,1799,2113,2141,29975,29976,29981,29980]} 1. d4 {[%emt 0:00:01]} Nf6 {[%emt 0:00:02]} 2. c4 {[%emt 0:00:01]} e6 {[%emt 0:00:03]} 3. Nf3 {[%emt 0:00:24]} Bb4+ {[%emt 0:00:03]} 4. Nbd2 {[%emt 0:01:12]} O-O {[%emt 0:02:25]} 5. a3 {[%emt 0:01:16]} Be7 {[%emt 0:00:21]} 6. e4 {[%emt 0:00:06]} d5 {[%emt 0:00:01]} 7. Qc2 {[%emt 0:01:37]} dxe4 {[%emt 0:00:52]} 8. Nxe4 {[%emt 0:00:04]} Nbd7 {[%emt 0:00:14]} 9. Nc3 {[%emt 0:01:18]} b6 {[%emt 0:01:17]} 10. Be2 {[%emt 0:00:02]} Bb7 {[%emt 0:00:01]} 11. O-O {[%emt 0:00:02]} c5 {[%emt 0:02:23]} 12. dxc5 {[%emt 0:00:57]} Nxc5 {[%emt 0:01:10]} 13. Bf4 {[%emt 0:00:15]} a6 {[%emt 0:01:16]} 14. Rfd1 {[%emt 0:00:16]} Qc8 {[%emt 0:00:01]} 15. Rac1 {[%emt 0:01:18]} Rd8 {[%emt 0:00:20]} 16. Rxd8+ {[%emt 0:00:50]} Qxd8 {[%emt 0:00:01]} 17. b4 {[%emt 0:00:02]} Nce4 {[%emt 0:00:15]} (17... Ncd7 $11) 18. Nxe4 {[%emt 0:00:04]} (18. Na4 $14) 18... Bxe4 $11 {[%emt 0:00:09]} 19. Qb3 {[%emt 0:00:02]} Rc8 {[%emt 0:01:13]} 20. h3 {[%emt 0:00:22]} Qe8 {[%emt 0:00:17]} 21. Bf1 {[%emt 0:00:57]} h6 {[%emt 0:00:36]} 22. Be5 {[%emt 0:00:57]} Qc6 {[%emt 0:01:28]} 23. Nd2 {[%emt 0:00:17]} Bg6 {[%emt 0:00:20]} 24. Qb2 {[%emt 0:00:25]} Ne8 {[%emt 0:00:41]} (24... Rd8 $11) 25. Be2 {[%emt 0:00:18]} (25. c5 $16 bxc5 26. Nb3) 25... f6 {[%emt 0:01:10]} (25... Rd8 $11) 26. Bf3 $16 {[%emt 0:00:54]} Qd7 {[%emt 0:00:08]} 27. Bd4 {[%emt 0:00:02]} Qc7 {[%emt 0:01:09]} 28. Nb3 {[%emt 0:00:37]} e5 {[%emt 0:00:42] [#]} 29. Bd5+ {[%emt 0:01:15]} ({White should play} 29. c5 $1 $16 {[%cal Rc5b6]} b5 (29... exd4 30. cxb6 Qd8 31. Rxc8 $16) 30. Bc3) 29... Kh8 {[%emt 0:00:02]} 30. Be3 {[%emt 0:00:08]} Rd8 {[%emt 0:00:38]} 31. f3 {[%emt 0:00:47]} Nd6 {[%emt 0:00:32]} (31... a5 $11 {remains equal.}) 32. Qf2 $16 {[%emt 0:00:23]} Nc8 {[%emt 0:00:08]} 33. Kh1 {[%emt 0:00:18]} (33. Qg3 $16 Bh7 34. Nd4) 33... f5 {[%emt 0:00:27]} 34. f4 {[%emt 0:00:02]} exf4 {[%emt 0:00:10]} (34... Bf6 $14) 35. Bxf4 $16 {[%emt 0:00:05]} Bd6 {[%emt 0:00:01] [#]} 36. Be3 {[%emt 0:00:12]} ({Better is} 36. Nd4 $1 $16 {[%cal Rd4e6] Black must now prevent Ne6.} Bf7 (36... Bxf4 $2 37. Ne6 $18) 37. Bxd6 Nxd6 38. Qf4 (38. Nxf5 $2 Nxf5 39. Bxf7 Ng3+ 40. Kg1 Rf8 $19)) 36... Bg3 {[%emt 0:00:07]} 37. Qf3 {[%emt 0:00:11]} Re8 {[%emt 0:00:18]} (37... Ne7 $2 38. Nd4 Qd6 39. Ne6 $18) 38. Bg1 {[%emt 0:01:39]} f4 {[%emt 0:00:08]} (38... Ne7 $14) 39. c5 {[%emt 0:01:00]} (39. Nd4 $16) 39... bxc5 $14 {[%emt 0:00:06]} 40. Nxc5 {[%emt 0:00:09]} (40. Bxc5 Ne7 41. Qg4 Qe5 $11) ({White should try} 40. Nd4 $16) 40... Ne7 $11 {[%emt 0:00:08]} 41. Be4 {[%emt 0:00:20]} Nf5 {[%emt 0:00:20]} (41... Qe5 $5) 42. Qg4 {[%emt 0:00:47]} Rxe4 {[%emt 0:00:08]} (42... Qf7 $5) 43. Qxg6 {[%emt 0:00:01]} Re5 $2 {[%emt 0:00:11][%mdl 8192]} (43... Re2 $14 44. Qg4 (44. Qxf5 Qc6 $11) 44... f3 (44... Qe5 $2 45. Nd7 $18) 45. Qxf3 (45. Qxf5 $2 fxg2#) 45... Bf4) 44. Nd3 $18 {[%emt 0:00:15]} ({Not} 44. Qxa6 Be1 $16) 44... Qxc1 {[%emt 0:00:07]} 45. Nxc1 {[%emt 0:00:02]} Nh4 {[%emt 0:00:06]} 46. Qxa6 {[%emt 0:00:12]} Re1 {[%emt 0:00:07]} 47. Qc8+ {[%emt 0:00:02]} Kh7 {[%emt 0:00:02]} 48. Qc2+ {[%emt 0:00:01]} Kh8 {[%emt 0:00:01]} 49. Qc8+ {[%emt 0:00:07]} Kh7 {[%emt 0:00:01]} 50. Qc2+ {[%emt 0:00:01]} Kh8 {[%emt 0:00:00]} 51. Nd3 {[%emt 0:00:38]} Ra1 {[%emt 0:00:14]} 52. Qb2 {[%emt 0:00:08]} Rd1 {[%emt 0:00:12]} 53. Qe2 {[%emt 0:00:03]} Ra1 {[%emt 0:00:13]} 54. Qe8+ {[%emt 0:00:28]} Kh7 {[%emt 0:00:00]} 55. Qe4+ {[%emt 0:00:01]} Kh8 {[%emt 0:00:37]} 56. Nxf4 {[%emt 0:00:08]} Bf2 {[%emt 0:00:12]} 57. Qe8+ {[%emt 0:00:02]} Kh7 {[%emt 0:00:00]} 58. Qe4+ {[%emt 0:00:01]} Kh8 {[%emt 0:00:01]} 59. Ne2 {[%emt 0:00:08]} Re1 {[%emt 0:00:10]} 60. Qe8+ {[%emt 0:00:03]} Kh7 {[%emt 0:00:01]} 61. Qe4+ {[%emt 0:00:01]} Kh8 {[%emt 0:00:11]} 62. g3 {[%emt 0:00:39]} Bxg1 {[%emt 0:00:35]} 63. gxh4 {[%emt 0:00:03]} Be3+ {[%emt 0:00:05]} 64. Kg2 {[%emt 0:00:01]} Rxe2+ {[%emt 0:00:06]} 65. Kf3 {[%emt 0:00:00]} Re1 {[%emt 0:00:04]} 66. Qxe3 {[%emt 0:00:02]} 1-0

[Event "Indian Rapid Championship 2023-24"]
[Site "Nashik"]
[Date "2024.03.05"]
[Round "8.9"]
[White "Mitrabha, Guha"]
[Black "Vaz, Ethan"]
[Result "1/2-1/2"]
[ECO "E60"]
[WhiteElo "2526"]
[BlackElo "2409"]
[Annotator "TA"]
[PlyCount "100"]
[EventDate "2024.03.02"]
[EventType "swiss"]
[EventCountry "IND"]
[SourceTitle "playchess.com"]
[Source "ChessBase"]
[SourceQuality "1"]
[TimeControl "900+10"]

{[%evp 22,100,58,46,59,41,87,69,62,52,96,71,85,79,77,73,85,89,73,80,70,63,87,87,84,89,89,79,81,85,141,161,152,150,172,60,268,258,260,201,190,93,211,196,191,187,214,226,191,8,8,8,8,-42,-42,-163,-86,-197,-221,-178,-207,-194,-202,-205,-211,-208,-194,-572,-356,-815,-786,-786,-779,-874,-645,-1179,-1168,-1145,-588,-584,-270]} 1. Nf3 {[%emt 0:04:11]} Nf6 {[%emt 0:00:04]} 2. c4 {[%emt 0:00:01]} g6 {[%emt 0:00:07]} 3. g3 {[%emt 0:00:01]} Bg7 {[%emt 0:00:01]} 4. Bg2 {[%emt 0:00:01]} O-O {[%emt 0:00:03]} 5. O-O {[%emt 0:00:02]} d6 {[%emt 0:00:05]} 6. d4 {[%emt 0:00:04]} c5 {[%emt 0:00:22]} 7. b3 {[%emt 0:00:03]} Nc6 {[%emt 0:02:05]} 8. Bb2 {[%emt 0:00:01]} Bg4 {[%emt 0:00:34]} 9. d5 {[%emt 0:00:01]} Na5 {[%emt 0:00:26]} 10. Nbd2 {[%emt 0:00:04]} a6 {[%emt 0:00:33]} 11. Qc2 {[%emt 0:00:09]} b5 {[%emt 0:01:16]} 12. e4 {[%emt 0:00:04]} Rb8 {[%emt 0:01:49] E60: King's Indian: Unusual lines and Fianchetto Variation without Nc3.} 13. Bc3 {[%emt 0:00:28]} Nd7 $146 {[%emt 0:01:43]} (13... e5 $14 {is more appropriate.}) ({Predecessor:} 13... Bxf3 14. Bxf3 bxc4 15. bxc4 Nd7 16. Be2 Bxc3 17. Qxc3 Rb7 18. h4 Qc7 19. h5 Nf6 {1-0 Dreev,A (2649)-Seliverstov,V (2462) Moscow blitz 72nd 2018 (14)}) 14. Rfe1 {[%emt 0:00:59]} Bxf3 {[%emt 0:01:43]} 15. Bxf3 {[%emt 0:00:57]} Qc7 {[%emt 0:01:23]} 16. Be2 {[%emt 0:00:13]} Rb7 {[%emt 0:00:50]} 17. h4 {[%emt 0:01:08]} h5 {[%emt 0:00:23]} 18. Bxg7 {[%emt 0:00:39]} Kxg7 {[%emt 0:00:01]} 19. Qc3+ {[%emt 0:00:01]} Kg8 {[%emt 0:00:54]} 20. Nf3 {[%emt 0:00:09] White is more active.} bxc4 {[%emt 0:00:32]} 21. bxc4 {[%emt 0:00:02]} Rfb8 {[%emt 0:00:28]} 22. Bd3 {[%emt 0:00:02]} Ne5 {[%emt 0:01:02]} 23. Nxe5 {[%emt 0:00:05]} dxe5 {[%emt 0:00:01]} 24. Re2 {[%emt 0:00:07]} Rb4 {[%emt 0:00:29]} 25. Rf1 {[%emt 0:00:01]} Nb7 {[%emt 0:01:22]} (25... f6 $142) 26. f4 $1 $16 {[%emt 0:00:02]} f6 {[%emt 0:00:04]} 27. Rg2 $1 {[%emt 0:00:13]} (27. f5 Nd6 $15) 27... Nd8 {[%emt 0:01:01]} 28. g4 {[%emt 0:00:12]} (28. f5 $18) 28... hxg4 $2 {[%emt 0:00:01]} ({Black should play} 28... Nf7 $14) 29. Rxg4 $18 {[%emt 0:00:02]} exf4 {[%emt 0:00:04]} 30. Rxg6+ {[%emt 0:00:30]} Kf7 {[%emt 0:00:26]} 31. Rg2 {[%emt 0:00:21]} (31. Rg4 $18 {is more deadly.}) 31... Qe5 {[%emt 0:00:00] [#]} (31... Kf8 $16) 32. Qxe5 $1 {[%emt 0:00:14]} fxe5 {[%emt 0:00:00]} 33. Rg5 {[%emt 0:00:01]} R8b6 {[%emt 0:00:26]} 34. Rxe5 {[%emt 0:00:06][%cal Oe5g5]} Rg6+ {[%emt 0:00:02]} 35. Rg5 $2 {[%emt 0:00:42]} (35. Kh1 $18 e6 36. Rxf4+ Rf6 37. Rxf6+ Kxf6 38. dxe6 (38. Rh5 Nf7 $18) 38... Nxe6 (38... Kxe5 $2 39. e7 $18) 39. Rf5+ Ke7 40. h5) 35... Rxg5+ $11 {[%emt 0:00:12]} 36. hxg5 {[%emt 0:00:02][%mdl 4096] Endgame. KRB-KRN} e5 $1 {[%emt 0:00:01]} 37. Kf2 {[%emt 0:00:27]} (37. dxe6+ $11 Nxe6 38. Kg2) 37... Kg6 $15 {[%emt 0:00:09][%mdl 1024] Black has compensation.} 38. Rh1 {[%emt 0:00:08] [#]} (38. Kf3 $15) 38... Nf7 {[%emt 0:00:16]} ({Black should try} 38... Rb2+ $1 $19 39. Ke1 Nf7 (39... Kxg5 40. Rh8 $15)) 39. d6 {[%emt 0:02:05]} Rb6 $19 {[%emt 0:00:11]} (39... Nxg5 40. d7 Rb8 (40... Rb2+ 41. Ke1 $11) 41. Bc2 $11) 40. d7 {[%emt 0:00:34][%cal Oh1h6] Rh6+! is the strong threat.} Rd6 $1 {[%emt 0:00:03]} 41. Be2 {[%emt 0:00:02]} Rxd7 {[%emt 0:00:20]} ({Not} 41... Nxg5 42. Rd1 Rxd1 (42... Nxe4+ $2 {too greedy.} 43. Ke1 $18) 43. Bxd1 $11) 42. Bh5+ {[%emt 0:00:09]} Kxg5 {[%emt 0:00:04]} 43. Bxf7 {[%emt 0:00:01]} Rxf7 {[%emt 0:00:01] KR-KR} 44. Rd1 $2 {[%emt 0:00:01] Dodges Rd7} (44. Rg1+ {is more resistant.} Kf6 45. Rd1) 44... Rh7 {[%emt 0:00:23] Threatens to win with ...Rh2+.} 45. Rd5 $2 {[%emt 0:00:01]} (45. Rg1+ Kf6 46. Kf3) 45... Rh2+ {[%emt 0:00:02]} 46. Kf3 {[%emt 0:00:02]} Rh3+ {[%emt 0:00:09]} (46... Rxa2 47. Rxe5+ Kf6 48. Rxc5 $14) 47. Kg2 {[%emt 0:00:11]} Ra3 {[%emt 0:00:19]} 48. Rxe5+ {[%emt 0:00:01]} Kg4 {[%emt 0:00:01]} 49. Rxc5 {[%emt 0:00:02]} Rxa2+ {[%emt 0:00:01]} 50. Kg1 {[%emt 0:00:00]} Ra1+ {[%emt 0:00:23]} (50... a5 $142 51. Rc7 Kf3) 1/2-1/2

[Event "Indian Rapid Championship 2023-24"]
[Site "Nashik"]
[Date "2024.03.05"]
[Round "8.10"]
[White "Sidhant, Mohapatra"]
[Black "Pimpalkhare Vedant"]
[Result "0-1"]
[ECO "D02"]
[WhiteElo "2379"]
[BlackElo "2254"]
[Annotator "TA"]
[PlyCount "76"]
[EventDate "2024.03.02"]
[EventType "swiss"]
[EventCountry "IND"]
[SourceTitle "playchess.com"]
[Source "ChessBase"]
[SourceQuality "1"]
[TimeControl "900+10"]

{[%evp 9,76,-4,3,0,0,-13,-8,-16,0,0,0,0,21,0,34,-20,-32,-31,-29,-26,-20,-35,-36,-39,-40,-41,-30,-33,-29,-58,-34,-55,-49,-59,-56,-140,-145,-140,-139,-122,-136,-150,-131,-139,-153,-146,-112,-106,-110,-110,-102,-156,-142,-142,-143,-133,-129,-131,-145,-147,-132,-226,-224,-226,-218,-5189,-5173,-4814,-4810]} 1. Nf3 {[%emt 0:00:08]} Nf6 {[%emt 0:00:02]} 2. d4 {[%emt 0:00:02]} e6 {[%emt 0:00:04]} 3. Bf4 {[%emt 0:00:03]} c5 {[%emt 0:00:43]} 4. e3 {[%emt 0:00:03]} d5 {[%emt 0:00:20]} 5. c3 {[%emt 0:00:06]} Bd6 {[%emt 0:00:02]} 6. Nbd2 {[%emt 0:00:29]} cxd4 {[%emt 0:00:20]} 7. cxd4 {[%emt 0:00:19]} Bxf4 {[%emt 0:00:55]} 8. exf4 {[%emt 0:00:10] The position is equal.} O-O {[%emt 0:00:09]} 9. Bd3 {[%emt 0:00:01]} Nc6 {[%emt 0:00:15]} 10. O-O {[%emt 0:00:14]} Qb6 {[%emt 0:00:03]} 11. Nb3 {[%emt 0:00:10]} a5 {[%emt 0:02:39]} 12. a4 {[%emt 0:02:36]} (12. Nc5 $14) 12... Bd7 $11 {[%emt 0:00:00]} 13. Ne5 {[%emt 0:00:17]} Rfc8 {[%emt 0:00:00]} 14. f5 {[%emt 0:01:35]} exf5 {[%emt 0:00:18] ...Nxe5 is the strong threat.} 15. Nxd7 {[%emt 0:00:02]} Nxd7 {[%emt 0:00:02]} 16. Bxf5 {[%emt 0:00:01]} Rc7 {[%emt 0:00:54]} 17. Qd3 {[%emt 0:00:25]} Nf6 {[%emt 0:01:22]} 18. Qb5 {[%emt 0:00:08]} Qa7 {[%emt 0:02:21]} 19. Rad1 {[%emt 0:02:08]} g6 {[%emt 0:00:00]} 20. Bb1 {[%emt 0:00:18]} Re8 {[%emt 0:00:00]} 21. h3 {[%emt 0:00:14]} Kg7 {[%emt 0:00:00]} 22. Rfe1 {[%emt 0:00:35]} ({Better is} 22. Qd3 $15) 22... Rxe1+ {[%emt 0:00:06]} 23. Rxe1 {[%emt 0:00:01]} Nxd4 {[%emt 0:00:37]} 24. Nxd4 {[%emt 0:00:28]} Qxd4 {[%emt 0:00:02]} 25. Qxa5 {[%emt 0:00:05]} b6 {[%emt 0:00:40]} 26. Qb5 {[%emt 0:00:13]} Rc4 {[%emt 0:00:02]} 27. b3 {[%emt 0:02:13]} Rb4 {[%emt 0:00:01]} 28. Qd3 {[%emt 0:00:01]} Qxd3 {[%emt 0:00:07]} 29. Bxd3 {[%emt 0:00:01]} Rxb3 $17 {[%emt 0:00:01][%mdl 4096] Endgame. KRB-KRN} 30. Bb5 {[%emt 0:00:01]} (30. Rd1 $142) 30... Ne4 {[%emt 0:00:52]} 31. Bc6 {[%emt 0:00:09]} Nc3 {[%emt 0:00:01]} 32. Re7 {[%emt 0:00:14]} Rb4 {[%emt 0:01:11][%cal Od5d4]} 33. Rb7 {[%emt 0:00:36]} d4 {[%emt 0:01:04][%cal Od4d3] Strongly threatening ...d3! Black is more active.} (33... Nxa4 $6 34. Bxd5 Rf4 35. Bb3 $11) 34. Kh2 {[%emt 0:00:09]} Kf8 {[%emt 0:01:25]} ({Don't take} 34... Nxa4 35. Bxa4 Rxa4 36. Rxb6 $15) 35. f3 {[%emt 0:01:20] [#]} (35. g4 $17) 35... h5 $1 $19 {[%emt 0:01:28][%cal Oh5h4]} ({Much less strong is} 35... Nxa4 36. Bxa4 Rxa4 37. Rxb6 $17) 36. Bb5 {[%emt 0:00:43]} Nxb5 {[%emt 0:00:16]} ({Resist} 36... Nxa4 37. Bxa4 Rxa4 38. Rxb6) 37. Rxb6 $2 {[%emt 0:00:01] [#]} (37. axb5 Rxb5 38. Kg3) 37... d3 $1 {[%emt 0:00:48] ( -> ...d2)} 38. axb5 {[%emt 0:00:01]} Rd4 {[%emt 0:00:04] Weighted Error Value: White=0.30/Black=0.04 (flawless) .  Mistake:       	White=5     	---        Inaccurate:     	White=1     	Black=1      OK:         	White=7     	Black=18     Best:        	White=4     	Black=5} 0-1

[Event "Indian Rapid Championship 2023-24"]
[Site "Nashik"]
[Date "2024.03.06"]
[Round "9.1"]
[White "Ghosh, Diptayan"]
[Black "Raja Rithvik R"]
[Result "1-0"]
[ECO "A08"]
[WhiteElo "2559"]
[BlackElo "2532"]
[Annotator "TA"]
[PlyCount "101"]
[EventDate "2024.03.02"]
[EventType "swiss"]
[EventCountry "IND"]
[SourceTitle "playchess.com"]
[Source "ChessBase"]
[SourceQuality "1"]
[TimeControl "900+10"]

{[%evp 9,101,12,20,0,22,0,15,22,8,0,3,7,7,4,22,41,52,52,61,35,73,77,147,152,339,214,230,216,208,149,188,182,176,162,205,187,187,151,221,212,266,195,212,194,267,209,231,236,227,239,226,196,237,108,104,100,97,102,106,93,112,111,111,109,118,121,127,125,229,114,343,315,311,291,454,314,462,214,315,336,320,332,456,425,840,993,1045,1021,944,882,29975,29976,29985,29986]} 1. Nf3 {[%emt 0:00:08]} d5 {[%emt 0:02:26]} 2. g3 {[%emt 0:00:02]} Nf6 {[%emt 0:00:10]} 3. Bg2 {[%emt 0:00:02]} c5 {[%emt 0:00:02]} 4. O-O {[%emt 0:00:20]} g6 {[%emt 0:00:01]} 5. c4 {[%emt 0:00:35]} Bg7 {[%emt 0:00:07]} 6. Qa4+ {[%emt 0:00:01]} Nc6 {[%emt 0:00:04]} 7. Ne5 {[%emt 0:00:03]} Qd6 {[%emt 0:00:01]} 8. cxd5 {[%emt 0:00:50] The position is equal.} Nxd5 {[%emt 0:00:04]} 9. Nc4 {[%emt 0:00:02]} Qd8 {[%emt 0:01:02]} 10. Nc3 {[%emt 0:00:02][%cal Bb1c3,Bc3e4,Be4d6][%mdl 32]} e6 {[%emt 0:01:52]} 11. Ne3 {[%emt 0:00:03]} Nde7 {[%emt 0:01:30]} 12. Ne4 $36 {[%emt 0:02:14][%mdl 2048] White is pushing.} Qd4 {[%emt 0:01:03]} 13. Nc4 {[%emt 0:00:38] [#] Black must now prevent Ned6+.} O-O {[%emt 0:02:02]} 14. d3 {[%emt 0:01:22]} Rb8 {[%emt 0:02:08] Hoping for ...b5.} 15. Ned6 {[%emt 0:04:47]} Qf6 {[%emt 0:00:44]} ({Black should try} 15... Bd7) 16. Be3 $16 {[%emt 0:00:42] White is much more active. The black rooks are passive.} Nd4 $2 {[%emt 0:03:05] [#]} (16... Nd5 $16) 17. Bxd4 {[%emt 0:01:14]} (17. Qxa7 Nxe2+ 18. Kh1 Bd7 19. Bxc5 (19. Qxc5 Nd5 $11) 19... Nd5 $18) 17... Qxd4 {[%emt 0:00:01]} 18. Qxa7 {[%emt 0:03:26]} Bd7 {[%emt 0:00:01]} 19. Nxb7 {[%emt 0:00:02][%cal Ob7d6] A dynamic duo of knights.} Nc6 {[%emt 0:00:33]} 20. Qa6 {[%emt 0:00:32]} (20. Qxc5 Rxb7 21. Qxd4 Bxd4 $17) 20... Nb4 {[%emt 0:00:14]} 21. Qd6 {[%emt 0:00:02]} Qxd6 {[%emt 0:01:14]} 22. Nbxd6 {[%emt 0:00:01]} Nc2 {[%emt 0:00:01]} 23. Rac1 {[%emt 0:00:13]} Nd4 {[%emt 0:00:01]} (23... Nb4 $16 24. a3 Nd5) 24. Rfe1 $18 {[%emt 0:00:02]} Rfd8 {[%emt 0:00:14]} 25. Ne4 {[%emt 0:00:12]} Bb5 {[%emt 0:00:15]} 26. b3 {[%emt 0:00:08]} Ra8 {[%emt 0:00:07]} (26... Bf8 {was necessary.} 27. Na5 Rdc8) 27. Nc3 {[%emt 0:00:14]} (27. Nxc5 Rxa2 28. Bf1 Rb8 $14) 27... Ra7 {[%emt 0:00:11]} 28. e3 {[%emt 0:00:30]} Bxc4 {[%emt 0:00:05]} 29. dxc4 {[%emt 0:00:01]} (29. bxc4 $6 Nf5 30. Ne4 Rxd3 $16) 29... Nf5 {[%emt 0:00:03]} 30. Na4 {[%emt 0:00:01]} Rd2 {[%emt 0:00:04]} 31. a3 {[%emt 0:00:09]} (31. Red1 Rxa2 32. Nxc5 Bb2 $18) (31. Nxc5 $18 {a4 would now be deadly.} Raxa2 32. Ne4) 31... Bb2 $16 {[%emt 0:00:07]} 32. Rcd1 {[%emt 0:00:46]} Rxd1 {[%emt 0:00:01]} 33. Rxd1 {[%emt 0:00:01]} Bxa3 {[%emt 0:00:01]} 34. Be4 {[%emt 0:00:07]} Kf8 {[%emt 0:00:43]} 35. Bxf5 {[%emt 0:00:19]} gxf5 {[%emt 0:00:18][%mdl 4096] Endgame. KRB-KRN} 36. Rd8+ {[%emt 0:00:02]} Kg7 {[%emt 0:00:01]} 37. Rb8 {[%emt 0:00:07]} Rd7 {[%emt 0:00:06]} 38. Rb5 {[%emt 0:00:03]} Rd3 {[%emt 0:00:02]} (38... Rd1+ $16 39. Kg2 Rb1) 39. Kf1 {[%emt 0:00:05]} ({Don't take} 39. Nxc5 $6 Bxc5 40. Rxc5 Rxb3 $16) (39. Kg2 $18 {has better winning chances.}) 39... Bb4 $2 {[%emt 0:00:05]} (39... Rd1+ $16 40. Kg2 Rb1) 40. Ke2 {[%emt 0:00:04]} Rd2+ {[%emt 0:00:02]} 41. Kf3 {[%emt 0:00:01]} Rd3 {[%emt 0:00:10]} (41... Rc2 $142 42. Nxc5 Bc3) 42. h3 {[%emt 0:00:14]} h5 {[%emt 0:00:28]} (42... e5 $142 43. g4 (43. Nxc5 Bxc5 44. Rxc5 Rxb3 $16) 43... e4+ 44. Kf4 Rd2 45. gxf5 (45. Kxf5 Rxf2+ 46. Kxe4 Rh2 $18) 45... Rxf2+ 46. Kxe4 Rh2 47. Nxc5 Bd2) 43. g4 {[%emt 0:00:07]} (43. Nxc5 $142 Bxc5 44. Ke2 (44. Rxc5 Rxb3 45. h4 Kg6 $14) 44... Bxe3 45. Kxd3 Bxf2 46. c5) 43... hxg4+ {[%emt 0:00:03]} (43... fxg4+ {keeps fighting.} 44. hxg4 h4) 44. hxg4 $18 {[%emt 0:00:02]} fxg4+ {[%emt 0:00:24]} 45. Kxg4 {[%emt 0:00:01]} f5+ {[%emt 0:00:10]} 46. Kg5 {[%emt 0:00:30]} Rd2 {[%emt 0:00:30]} (46... Rd1 $142 47. Rb7+ (47. Nxc5 Bxc5 48. Rxc5 Rg1+ 49. Kh4 Rh1+ 50. Kg3 Rg1+ 51. Kf3 Rb1 $18) 47... Kg8) 47. Nxc5 {[%emt 0:00:09]} Bxc5 {[%emt 0:00:02]} 48. Rxc5 {[%emt 0:00:00]} Rxf2 {[%emt 0:00:01]} 49. Rc7+ {[%emt 0:00:01]} Kg8 {[%emt 0:00:04]} 50. b4 {[%emt 0:00:05][%cal Bb3b4,Bb4b5][%mdl 32]} Rf3 {[%emt 0:00:11]} 51. b5 {[%emt 0:00:01] Weighted Error Value: White=0.29 (precise) /Black=0.58.  Loses game:     	---       	Black=2      Mistake:       	White=3     	Black=8      Inaccurate:     	White=2     	Black=2      OK:         	White=14    	Black=12     Best:        	White=3     	Black=4} 1-0